bitfinex/quotes_BTCUSD_20220405
["timestamp","ask_amount","ask_price","bid_price","bid_amount"]
[1649150018764,0.12990905,46650.0,46649.0,0.5420617]
[1649150018863,0.12990905,46650.0,46649.0,0.50485958]
[1649150021694,0.12990905,46650.0,46649.0,0.83139851]
[1649150024616,0.12990905,46650.0,46649.0,0.50485958]
[1649150025119,0.12990905,46650.0,46649.0,0.39771058]
[1649150026422,0.12990905,46650.0,46649.0,0.29771058]
[1649150028253,0.42990905,46650.0,46649.0,0.29771058]
[1649150028355,0.42990905,46650.0,46649.0,0.13842636]
[1649150028555,0.42990905,46650.0,46644.0,0.01072]
[1649150028655,0.42990905,46650.0,46645.0,0.148458]
[1649150028656,0.08,46647.0,46645.0,0.148458]
[1649150028758,0.053588,46648.0,46640.0,0.053588]
[1649150028759,0.08,46645.0,46640.0,0.30815195]
[1649150028859,0.08,46645.0,46641.0,0.5]
[1649150028956,0.08,46644.0,46641.0,0.5]
[1649150029154,0.08,46642.0,46641.0,0.51072]
[1649150029255,0.08,46642.0,46641.0,0.23816334]
[1649150029356,0.13,46642.0,46641.0,0.22744334]
[1649150029504,0.13,46642.0,46641.0,0.37465752]
[1649150029806,0.13,46642.0,46641.0,0.32661518]
[1649150029910,0.13,46642.0,46641.0,0.43745877]
[1649150030541,0.13,46642.0,46641.0,0.57588513]
[1649150034351,0.13,46642.0,46641.0,0.24926995]
[1649150034452,0.13,46642.0,46641.0,0.14926995]
[1649150039901,0.13,46642.0,46641.0,0.13842636]
[1649150040001,0.13,46642.0,46641.0,0.14354825]
[1649150041160,0.43,46642.0,46641.0,0.14354825]
[1649150041257,0.43,46642.0,46641.0,0.13842636]
[1649150041359,0.08,46638.0,46632.0,0.01072]
[1649150041458,0.08,46636.0,46632.0,0.01072]
[1649150041660,0.407201,46637.0,46632.0,0.01072]
[1649150041661,0.08,46634.0,46632.0,0.01072]
[1649150041813,0.08,46633.0,46630.0,0.00054445]
[1649150041905,0.30895804,46631.0,46630.0,0.01126445]
[1649150042056,0.13,46631.0,46630.0,0.02211048]
[1649150042254,0.13,46631.0,46630.0,0.02211002]
[1649150042660,0.13,46631.0,46630.0,0.02156557]
[1649150042855,0.13,46631.0,46630.0,0.01084557]
[1649150049655,0.183594,46631.0,46630.0,0.0108451]
[1649150049756,0.237188,46631.0,46630.0,0.0108451]
[1649150055604,0.237188,46631.0,46630.0,0.01084383]
[1649150057969,0.52218,46631.0,46630.0,0.01084383]
[1649150060075,0.82218,46631.0,46630.0,0.01084383]
[1649150060326,0.52218,46631.0,46630.0,0.01084383]
[1649150061058,0.74986681,46631.0,46630.0,0.01084383]
[1649150061309,0.46487481,46631.0,46630.0,0.01084383]
[1649150061412,0.237188,46631.0,46630.0,0.01084383]
[1649150066580,0.237188,46631.0,46630.0,0.3374784]
[1649150066681,0.237188,46631.0,46630.0,0.4874784]
[1649150069359,0.237188,46631.0,46630.0,0.48747793]
[1649150074107,0.237188,46631.0,46630.0,0.43747793]
[1649150075210,0.237188,46631.0,46630.0,0.48747793]
[1649150076911,0.183594,46631.0,46630.0,0.48747793]
[1649150077010,0.183594,46631.0,46630.0,0.48747735]
[1649150077261,0.183594,46631.0,46630.0,0.47663457]
[1649150080792,0.183594,46631.0,46630.0,0.4874784]
[1649150083308,0.183594,46631.0,46630.0,0.4374784]
[1649150084112,0.183594,46631.0,46630.0,0.4874784]
[1649150088660,0.183594,46631.0,46630.0,0.68831024]
[1649150096315,0.183594,46631.0,46630.0,0.76449544]
[1649150096617,0.183594,46631.0,46630.0,0.5636636]
[1649150096715,0.183594,46631.0,46630.0,0.4874784]
[1649150099867,0.183594,46631.0,46630.0,0.6706113]
[1649150100266,0.183594,46631.0,46630.0,0.4874784]
[1649150104544,0.183594,46631.0,46630.0,0.48867017]
[1649150109126,0.35783528,46631.0,46630.0,0.48867017]
[1649150109262,0.53207656,46631.0,46630.0,1.08606886]
[1649150109362,0.53207656,46631.0,46630.0,1.12886886]
[1649150109465,0.53207656,46631.0,46630.0,1.37032801]
[1649150109764,0.53207656,46631.0,46630.0,1.44652268]
[1649150109965,0.47848256,46631.0,46630.0,1.44652268]
[1649150110166,0.47838884,46631.0,46630.0,1.44652268]
[1649150111315,0.47838884,46631.0,46630.0,1.44652233]
[1649150111417,0.47838884,46631.0,46630.0,1.45724233]
[1649150112322,0.42848256,46631.0,46630.0,1.45724233]
[1649150112524,0.4277792,46631.0,46630.0,1.45724233]
[1649150113031,0.4277792,46631.0,46630.0,1.88302426]
[1649150114185,0.4777792,46631.0,46630.0,1.88302426]
[1649150116035,0.4777792,46631.0,46630.0,2.53722426]
[1649150116137,0.05358,46637.0,46631.0,0.6542]
[1649150116238,0.34579838,46639.0,46636.0,0.65]
[1649150116239,0.29221838,46639.0,46636.0,0.65]
[1649150116336,0.29221838,46639.0,46636.0,0.45]
[1649150116438,0.29221838,46639.0,46636.0,0.75]
[1649150116589,0.29221838,46639.0,46636.0,0.8]
[1649150116767,0.29221838,46639.0,46638.0,0.59739869]
[1649150116825,0.29221838,46639.0,46638.0,1.07403326]
[1649150117026,0.29221838,46639.0,46638.0,1.11683326]
[1649150117125,0.29221838,46639.0,46638.0,1.19302793]
[1649150117226,0.29221838,46639.0,46638.0,1.46567552]
[1649150117626,0.29221838,46639.0,46638.0,2.70184552]
[1649150118428,0.29221838,46639.0,46638.0,2.42919793]
[1649150118827,0.29221838,46639.0,46638.0,2.43155202]
[1649150120283,0.29221838,46639.0,46638.0,2.44239271]
[1649150120519,0.29221838,46639.0,46638.0,2.32339804]
[1649150123678,0.29221838,46639.0,46638.0,1.99676347]
[1649150129122,0.29221838,46639.0,46638.0,1.94676347]
[1649150129519,0.29221838,46639.0,46638.0,1.94676695]
[1649150135900,0.157169,46640.0,46638.0,1.94676695]
[1649150136002,0.157169,46640.0,46638.0,1.93592278]
[1649150136304,0.15708537,46640.0,46638.0,1.33852409]
[1649150136603,0.15708537,46640.0,46639.0,0.59739869]
[1649150136702,0.15708537,46640.0,46639.0,0.12673439]
[1649150137506,0.15708537,46640.0,46638.0,1.15712048]
[1649150138205,0.15708537,46640.0,46638.0,0.88751348]
[1649150138305,0.15708537,46640.0,46638.0,0.00117979]
[1649150138408,0.23532537,46640.0,46638.0,0.00117979]
[1649150138707,0.23532537,46640.0,46630.0,0.62819607]
[1649150138862,0.053604,46637.0,46630.0,0.62765091]
[1649150138959,0.053604,46637.0,46631.0,0.01072]
[1649150139061,0.053604,46637.0,46627.0,0.30832077]
[1649150139157,0.053604,46637.0,46630.0,0.00054515]
[1649150139381,0.24037132,46636.0,46630.0,0.00054515]
[1649150139532,0.16082,46635.0,46630.0,0.00054515]
[1649150139630,1.56082,46635.0,46630.0,0.00054515]
[1649150139731,1.668034,46635.0,46630.0,0.00054515]
[1649150139934,0.053607,46634.0,46630.0,0.00054515]
[1649150140033,0.053607,46634.0,46633.0,0.17]
[1649150140135,1.003607,46634.0,46626.0,0.01072]
[1649150140238,0.053608,46633.0,46626.0,0.01072]
[1649150140333,0.053608,46633.0,46630.0,0.00054512]
[1649150141334,0.053606,46631.0,46625.0,0.40832077]
[1649150141438,0.053606,46631.0,46626.0,0.01072]
[1649150141579,0.107212,46630.0,46629.0,0.00054512]
[1649150141637,0.202752,46630.0,46629.0,0.00054512]
[1649150141938,0.46579981,46630.0,46629.0,0.00054512]
[1649150142587,0.107211,46629.0,46624.0,0.40832077]
[1649150142787,0.107211,46629.0,46627.0,0.00054514]
[1649150143727,0.107211,46629.0,46625.0,0.15]
[1649150143930,0.107211,46629.0,46626.0,0.00054515]
[1649150144129,0.160816,46629.0,46626.0,0.00054515]
[1649150144930,0.160816,46629.0,46624.0,0.1]
[1649150145182,0.160816,46629.0,46625.0,0.00054515]
[1649150145282,0.160816,46629.0,46628.0,0.00124673]
[1649150146975,0.160816,46629.0,46626.0,0.00179521]
[1649150147372,0.160816,46629.0,46626.0,0.00125006]
[1649150148225,0.160816,46629.0,46627.0,0.053602]
[1649150149280,0.160816,46629.0,46628.0,0.00124673]
[1649150149637,0.95479832,46636.0,46632.0,0.25]
[1649150149638,0.30015762,46633.0,46632.0,0.25]
[1649150149731,0.22185165,46636.0,46632.0,0.45]
[1649150149828,0.22185165,46636.0,46635.0,0.25]
[1649150154867,0.44036153,46636.0,46635.0,0.25]
[1649150156519,0.22185165,46636.0,46635.0,0.25]
[1649150157073,0.22155902,46636.0,46635.0,0.25]
[1649150163676,0.51320194,46636.0,46635.0,0.25]
[1649150164228,0.51320194,46636.0,46632.0,0.2]
[1649150164827,0.51320194,46636.0,46635.0,0.25]
[1649150165879,0.51320194,46636.0,46632.0,0.2]
[1649150165980,0.51320194,46636.0,46635.0,0.25]
[1649150166779,0.02080692,46632.0,46630.0,0.00154718]
[1649150167730,0.02080692,46632.0,46630.0,0.001]
[1649150170753,0.18960337,46631.0,46630.0,0.001]
[1649150174178,0.02080692,46632.0,46630.0,0.001]
[1649150177522,0.18967262,46631.0,46630.0,0.001]
[1649150178426,0.02080692,46632.0,46630.0,0.001]
[1649150179630,0.21039559,46632.0,46630.0,0.001]
[1649150181098,0.18957982,46631.0,46630.0,0.001]
[1649150183747,0.2104912,46632.0,46630.0,0.001]
[1649150183846,0.02080692,46632.0,46630.0,0.001]
[1649150184781,0.18307999,46632.0,46630.0,0.001]
[1649150184875,0.02080692,46632.0,46630.0,0.001]
[1649150190329,0.1896754,46631.0,46630.0,0.001]
[1649150191428,0.02080692,46632.0,46630.0,0.001]
[1649150192498,0.320705,46631.0,46630.0,0.001]
[1649150192648,0.29624353,46631.0,46630.0,0.001]
[1649150193196,0.61694853,46631.0,46630.0,0.001]
[1649150193295,0.29624353,46631.0,46630.0,0.001]
[1649150193599,0.61694853,46631.0,46630.0,0.001]
[1649150193697,0.29624353,46631.0,46630.0,0.001]
[1649150194901,0.61694853,46631.0,46630.0,0.001]
[1649150194997,0.29624353,46631.0,46630.0,0.001]
[1649150196034,0.61694853,46631.0,46630.0,0.001]
[1649150196135,0.320705,46631.0,46630.0,0.001]
[1649150196236,0.02080692,46632.0,46630.0,0.001]
[1649150196840,0.00145487,46625.0,46623.0,1.26703527]
[1649150197690,0.00145487,46625.0,46624.0,0.32711167]
[1649150202380,0.00119137,46625.0,46624.0,0.32711167]
[1649150207883,0.05479523,46625.0,46624.0,0.32711167]
[1649150208482,0.05479523,46625.0,46624.0,0.61298604]
[1649150208686,0.05479523,46625.0,46624.0,0.32711167]
[1649150213131,0.05479523,46625.0,46624.0,0.42701167]
[1649150217232,0.05479523,46625.0,46624.0,0.42074861]
[1649150219076,0.05479523,46625.0,46624.0,0.0999]
[1649150222032,0.05450952,46625.0,46624.0,0.0999]
[1649150223983,0.05450952,46625.0,46624.0,0.42705889]
[1649150225883,0.05450952,46625.0,46624.0,0.0999]
[1649150226637,0.5,46624.0,46622.0,0.002]
[1649150226736,0.10812852,46625.0,46622.0,0.00257661]
[1649150226836,0.05,46623.0,46622.0,0.00257661]
[1649150227735,0.05,46623.0,46622.0,0.002]
[1649150227835,0.05,46623.0,46622.0,0.3291585]
[1649150230729,0.04807,46623.0,46622.0,0.3291585]
[1649150235332,0.05,46623.0,46622.0,0.3291585]
[1649150235534,0.04904,46623.0,46622.0,0.3291585]
[1649150235736,0.04808,46623.0,46622.0,0.3291585]
[1649150235834,0.05,46624.0,46622.0,0.3291585]
[1649150235938,0.05,46624.0,46622.0,0.002]
[1649150236037,0.10450952,46625.0,46622.0,0.002]
[1649150236136,0.05450952,46625.0,46622.0,0.002]
[1649150243749,0.05450952,46625.0,46623.0,0.35716197]
[1649150244745,0.05450952,46625.0,46623.0,0.03009891]
[1649150250262,0.05450952,46625.0,46622.0,0.00257661]
[1649150250560,0.05450952,46625.0,46622.0,0.002]
[1649150254682,0.05450952,46625.0,46623.0,0.32713468]
[1649150257381,0.05450952,46625.0,46623.0,0.42703468]
[1649150257583,0.05450952,46625.0,46624.0,0.32713468]
[1649150258187,0.05444246,46625.0,46624.0,0.32713468]
[1649150258992,0.00119137,46625.0,46624.0,0.32713468]
[1649150259701,0.00119137,46625.0,46623.0,0.32713468]
[1649150263681,0.00119137,46625.0,46622.0,0.00257661]
[1649150263830,0.00119137,46625.0,46622.0,0.002]
[1649150264029,0.00119137,46625.0,46622.0,0.00257661]
[1649150265032,0.00119137,46625.0,46622.0,0.002]
[1649150270753,0.21336552,46625.0,46622.0,0.002]
[1649150270961,0.004,46621.0,46618.0,0.001]
[1649150271054,0.05761847,46621.0,46618.0,0.001]
[1649150271158,0.04814847,46621.0,46618.0,0.001]
[1649150271458,0.09814847,46621.0,46618.0,0.001]
[1649150271558,0.14814847,46621.0,46618.0,0.001]
[1649150271757,0.14814847,46621.0,46619.0,0.32698702]
[1649150271861,0.28150581,46620.0,46619.0,0.32698702]
[1649150274290,0.09814847,46621.0,46619.0,0.32698702]
[1649150274784,0.14814847,46621.0,46619.0,0.32698702]
[1649150277143,0.09814847,46621.0,46619.0,0.32698702]
[1649150277346,0.04814847,46621.0,46619.0,0.32698702]
[1649150279549,0.004,46621.0,46619.0,0.38060002]
[1649150280495,0.004,46621.0,46620.0,0.32698702]
[1649150283309,0.004,46621.0,46620.0,0.32691563]
[1649150289381,0.004,46621.0,46620.0,0.53691563]
[1649150290934,0.004,46621.0,46620.0,0.83691563]
[1649150291244,0.004,46621.0,46620.0,0.94412763]
[1649150293264,0.004,46621.0,46620.0,1.27495766]
[1649150293564,0.004,46621.0,46620.0,1.41775766]
[1649150294364,0.004,46621.0,46620.0,1.58775766]
[1649150294764,0.004,46621.0,46620.0,1.6910257]
[1649150294965,0.00018,46621.0,46620.0,1.38222347]
[1649150295065,0.00018,46621.0,46620.0,1.36019567]
[1649150295366,0.00018,46621.0,46620.0,1.69102956]
[1649150295666,0.00018,46621.0,46620.0,1.36019567]
[1649150295968,0.00018,46621.0,46620.0,1.49294918]
[1649150297188,0.00018,46621.0,46620.0,1.33379638]
[1649150300635,0.00018,46621.0,46620.0,1.35582199]
[1649150302439,0.00018,46621.0,46620.0,1.66415956]
[1649150303042,0.00018,46621.0,46620.0,1.32135956]
[1649150308349,0.00018,46621.0,46620.0,0.99099638]
[1649150311407,0.00018,46621.0,46620.0,1.29933395]
[1649150311509,0.00018,46621.0,46620.0,1.32135073]
[1649150311608,0.00018,46621.0,46620.0,0.99099638]
[1649150314989,0.00018,46621.0,46620.0,1.29933395]
[1649150315089,0.00018,46621.0,46620.0,0.99099638]
[1649150315671,0.00018,46621.0,46620.0,1.29099638]
[1649150315769,0.00018,46621.0,46620.0,0.99099638]
[1649150315970,0.00018,46621.0,46620.0,1.6266884]
[1649150316222,0.00018,46621.0,46620.0,1.35030363]
[1649150318221,8.48e-05,46621.0,46620.0,1.35030363]
[1649150320656,8.48e-05,46621.0,46620.0,1.32294918]
[1649150321855,8.48e-05,46621.0,46620.0,1.34496352]
[1649150324046,8.48e-05,46621.0,46620.0,1.51496352]
[1649150324898,8.48e-05,46621.0,46620.0,1.51325783]
[1649150326805,8.48e-05,46621.0,46620.0,1.51463999]
[1649150326903,8.48e-05,46621.0,46620.0,2.84921663]
[1649150327001,8.48e-05,46621.0,46620.0,3.51916451]
[1649150327206,8.48e-05,46621.0,46620.0,3.53003116]
[1649150327301,8.48e-05,46621.0,46620.0,3.95558671]
[1649150327507,8.48e-05,46621.0,46620.0,4.08375679]
[1649150327605,8.48e-05,46621.0,46620.0,4.07289014]
[1649150327703,8.48e-05,46621.0,46620.0,4.08375691]
[1649150328306,8.48e-05,46621.0,46620.0,4.07289014]
[1649150328754,8.48e-05,46621.0,46620.0,4.08373559]
[1649150328854,8.48e-05,46621.0,46620.0,4.07012069]
[1649150329153,0.00119137,46625.0,46621.0,2.65]
[1649150329257,0.00119137,46625.0,46624.0,0.01086689]
[1649150329358,0.00119137,46625.0,46624.0,0.62117223]
[1649150329457,0.00119137,46625.0,46624.0,0.89915789]
[1649150329556,0.00119137,46625.0,46624.0,1.16724027]
[1649150329705,0.00119137,46625.0,46624.0,2.47650768]
[1649150329907,0.00119137,46625.0,46624.0,2.46564068]
[1649150330691,0.00119137,46625.0,46624.0,2.59381076]
[1649150331286,0.00119137,46625.0,46624.0,2.92018158]
[1649150332741,0.00119137,46625.0,46624.0,2.93102726]
[1649150333689,0.00119137,46625.0,46624.0,2.92018158]
[1649150333790,0.00119137,46625.0,46624.0,2.93102494]
[1649150337496,0.00119137,46625.0,46624.0,2.39632494]
[1649150338055,0.00119137,46625.0,46624.0,2.26815486]
[1649150345156,0.00119137,46625.0,46624.0,3.11523855]
[1649150345694,0.00119137,46625.0,46624.0,3.24340863]
[1649150347047,0.00057644,46636.0,46625.0,2.5]
[1649150347199,0.00057644,46636.0,46631.0,0.053591]
[1649150347350,0.00057644,46636.0,46631.0,0.82489374]
[1649150347448,0.00057644,46636.0,46631.0,0.52489374]
[1649150347549,0.00057644,46636.0,46631.0,0.46573722]
[1649150347746,0.00057644,46636.0,46631.0,1.31282091]
[1649150347849,0.22210302,46640.0,46631.0,1.31282091]
[1649150347947,0.1987,46641.0,46631.0,1.31282091]
[1649150348152,0.00057647,46636.0,46631.0,1.41608895]
[1649150348405,0.00057647,46636.0,46631.0,1.71993223]
[1649150349102,0.1987,46641.0,46631.0,1.71993223]
[1649150349203,0.1987,46641.0,46631.0,1.76273223]
[1649150349342,0.00057647,46636.0,46631.0,1.76273223]
[1649150349942,0.00057647,46636.0,46631.0,2.08925029]
[1649150350245,0.1987,46641.0,46631.0,2.08925029]
[1649150350446,0.2987,46641.0,46636.0,0.01084348]
[1649150350544,0.2987,46641.0,46634.0,0.05359]
[1649150350645,0.2987,46641.0,46637.0,0.8391915]
[1649150350746,0.1,46641.0,46637.0,0.36826992]
[1649150350846,0.00230554,46643.0,46640.0,0.01084348]
[1649150350947,0.00230554,46643.0,46639.0,1.54868697]
[1649150351144,0.28196539,46643.0,46639.0,1.54868697]
[1649150351243,0.00230554,46643.0,46639.0,1.54868697]
[1649150351346,0.05230554,46643.0,46639.0,1.54868697]
[1649150351444,0.05230554,46643.0,46639.0,1.54109777]
[1649150351445,0.05,46643.0,46639.0,1.54109777]
[1649150351546,0.05,46645.0,46639.0,1.54109777]
[1649150351644,0.4587541,46646.0,46639.0,1.54109777]
[1649150351947,0.45864621,46646.0,46639.0,1.54109777]
[1649150352346,0.30889967,46643.0,46639.0,1.54109777]
[1649150352545,0.35889967,46643.0,46639.0,1.54109777]
[1649150352647,0.05,46643.0,46639.0,1.54109777]
[1649150352847,0.05,46643.0,46641.0,0.00117246]
[1649150352947,0.05,46645.0,46641.0,0.00117246]
[1649150353747,0.28513399,46644.0,46641.0,0.00117246]
[1649150353844,0.33513399,46644.0,46641.0,0.00117246]
[1649150353944,0.05,46644.0,46641.0,0.00117246]
[1649150354245,0.05023674,46645.0,46641.0,0.00117246]
[1649150354945,0.05023674,46645.0,46643.0,0.00116589]
[1649150355095,0.24781676,46644.0,46643.0,0.00116589]
[1649150355295,0.29781676,46644.0,46643.0,0.00116589]
[1649150356549,0.29781676,46644.0,46643.0,0.21116589]
[1649150356908,0.05,46645.0,46643.0,0.21116589]
[1649150357310,0.05,46645.0,46643.0,0.21233562]
[1649150359411,0.05,46645.0,46643.0,0.21116973]
[1649150360873,0.320705,46644.0,46643.0,0.21116973]
[1649150361130,0.370705,46644.0,46643.0,0.21116973]
[1649150361223,0.05,46644.0,46643.0,0.21116973]
[1649150361547,0.05,46645.0,46643.0,0.21116973]
[1649150361623,0.45936565,46646.0,46643.0,0.21116973]
[1649150361723,0.320705,46645.0,46643.0,0.21116973]
[1649150361825,0.45936565,46646.0,46643.0,0.21116973]
[1649150362123,0.320705,46645.0,46643.0,0.21116973]
[1649150362227,0.45936565,46646.0,46643.0,0.21116973]
[1649150362326,0.4587511,46646.0,46643.0,0.21116973]
[1649150362626,0.320705,46645.0,46643.0,0.21116973]
[1649150362727,0.4587511,46646.0,46643.0,0.21116973]
[1649150363376,0.4587511,46646.0,46643.0,0.21010741]
[1649150364695,0.4587511,46646.0,46645.0,0.00116699]
[1649150364795,0.7794561,46646.0,46645.0,0.00116699]
[1649150366351,0.4587511,46646.0,46645.0,0.00116699]
[1649150366552,0.15359,46646.0,46645.0,0.00116699]
[1649150367053,0.15359,46646.0,46644.0,0.00349411]
[1649150367501,0.26725426,46645.0,46644.0,0.00349411]
[1649150367606,0.58795926,46645.0,46644.0,0.00349411]
[1649150367702,0.320705,46645.0,46644.0,0.00349411]
[1649150368903,0.22757766,46645.0,46644.0,0.00349411]
[1649150369004,0.54828266,46645.0,46644.0,0.00349411]
[1649150369102,0.54828266,46645.0,46644.0,0.00116699]
[1649150369201,0.320705,46645.0,46644.0,0.00116699]
[1649150370203,0.55490537,46645.0,46644.0,0.00116699]
[1649150370505,0.320705,46645.0,46644.0,0.00116699]
[1649150370905,0.320705,46645.0,46643.0,0.21243658]
[1649150371056,0.320705,46644.0,46643.0,0.21243658]
[1649150371156,0.59063462,46646.0,46643.0,0.21243658]
[1649150371254,0.320705,46645.0,46643.0,0.21243658]
[1649150371358,0.41417882,46646.0,46643.0,0.21243658]
[1649150371453,0.22046385,46645.0,46643.0,0.21243658]
[1649150371791,0.59063462,46646.0,46643.0,0.21243658]
[1649150372192,0.59121111,46646.0,46643.0,0.21243658]
[1649150372845,0.23030151,46645.0,46643.0,0.21243658]
[1649150372943,0.59121111,46646.0,46643.0,0.21243658]
[1649150373144,0.59063462,46646.0,46643.0,0.21243658]
[1649150373595,0.320705,46645.0,46643.0,0.21243658]
[1649150373846,0.59063462,46646.0,46643.0,0.21243658]
[1649150373949,0.320705,46645.0,46643.0,0.21243658]
[1649150374095,0.60324309,46645.0,46643.0,0.21243658]
[1649150374197,0.320705,46644.0,46643.0,0.21243658]
[1649150374395,0.33253809,46645.0,46643.0,0.21243658]
[1649150374598,0.320705,46644.0,46643.0,0.21243658]
[1649150374697,0.33253809,46645.0,46643.0,0.21010237]
[1649150374798,0.32040671,46644.0,46643.0,0.21010237]
[1649150374896,0.33253809,46645.0,46643.0,0.21010237]
[1649150374998,0.320706,46644.0,46643.0,0.21010237]
[1649150375098,0.33253809,46645.0,46643.0,0.21010237]
[1649150375199,0.320706,46644.0,46643.0,0.21010237]
[1649150375400,0.1,46644.0,46643.0,0.21010237]
[1649150375805,0.38253809,46645.0,46643.0,0.21010237]
[1649150376756,0.1,46645.0,46644.0,0.00116836]
[1649150376904,0.05,46645.0,46644.0,0.00116836]
[1649150377005,0.370706,46645.0,46644.0,0.00116836]
[1649150377106,0.591211,46646.0,46644.0,0.00116836]
[1649150377308,0.320706,46645.0,46644.0,0.00116836]
[1649150377405,0.4147552,46646.0,46644.0,0.00116836]
[1649150377556,0.320706,46645.0,46644.0,0.00116836]
[1649150377707,0.28458934,46645.0,46644.0,0.00116836]
[1649150377957,0.60529534,46645.0,46644.0,0.00116836]
[1649150378158,0.320706,46645.0,46644.0,0.00116836]
[1649150378761,0.41417882,46646.0,46644.0,0.0011664]
[1649150378862,0.320706,46645.0,46644.0,0.0011664]
[1649150378966,0.41417882,46646.0,46644.0,0.0011664]
[1649150379063,0.320706,46645.0,46644.0,0.0011664]
[1649150379161,0.41417882,46646.0,46644.0,0.0011664]
[1649150379300,0.320706,46645.0,46644.0,0.0011664]
[1649150379499,0.41417882,46646.0,46644.0,0.0011664]
[1649150379600,0.320706,46645.0,46644.0,0.0011664]
[1649150380704,0.320706,46645.0,46644.0,0.00349945]
[1649150380806,0.35,46644.0,46639.0,1.31272838]
[1649150380906,0.65417882,46646.0,46639.0,1.31272838]
[1649150381003,0.83063462,46646.0,46639.0,1.31272838]
[1649150381760,0.0005764,46645.0,46639.0,1.31272838]
[1649150382761,0.83063462,46646.0,46639.0,1.31272838]
[1649150382961,0.0005764,46644.0,46639.0,1.31272838]
[1649150383099,0.0005764,46644.0,46641.0,0.00139342]
[1649150383954,0.83063462,46646.0,46641.0,0.00139342]
[1649150384157,0.0005764,46645.0,46641.0,0.00139342]
[1649150385106,0.83063462,46646.0,46641.0,0.00139342]
[1649150385403,0.0005764,46645.0,46641.0,0.00139342]
[1649150385503,0.0005764,46645.0,46640.0,0.00278026]
[1649150386354,0.83063462,46646.0,46640.0,0.00278026]
[1649150386659,0.0005764,46645.0,46640.0,0.00278026]
[1649150387452,0.0005764,46645.0,46643.0,0.00138966]
[1649150387553,0.83063462,46646.0,46643.0,0.00138966]
[1649150387756,0.0005764,46645.0,46643.0,0.00138966]
[1649150388761,1.07817563,46646.0,46643.0,0.00138966]
[1649150389060,1.07875202,46646.0,46643.0,0.00138966]
[1649150389660,1.07875202,46646.0,46641.0,0.03148019]
[1649150389960,1.07817563,46646.0,46641.0,0.03148019]
[1649150390161,1.07875202,46646.0,46641.0,0.03148019]
[1649150391111,1.07817563,46646.0,46641.0,0.03148019]
[1649150391411,1.07875202,46646.0,46641.0,0.03148019]
[1649150391911,1.07875202,46646.0,46645.0,0.0013859]
[1649150392113,1.39945802,46646.0,46645.0,0.0013859]
[1649150392312,1.39888163,46646.0,46645.0,0.0013859]
[1649150393164,1.07817563,46646.0,46645.0,0.0013859]
[1649150393266,1.39888163,46646.0,46645.0,0.0013859]
[1649150393468,0.320706,46645.0,46644.0,0.00138236]
[1649150393968,0.320706,46645.0,46644.0,0.01222491]
[1649150394405,1.07817563,46646.0,46644.0,0.01222491]
[1649150394505,0.320706,46645.0,46644.0,0.00138236]
[1649150394608,1.07817563,46646.0,46644.0,0.00138236]
[1649150394705,0.320706,46645.0,46644.0,0.00138236]
[1649150394805,1.07817563,46646.0,46644.0,0.00138236]
[1649150394906,0.320706,46645.0,46644.0,0.00138236]
[1649150395156,1.07817563,46646.0,46644.0,0.00277014]
[1649150395257,0.320706,46645.0,46644.0,0.00277014]
[1649150395506,1.07817563,46646.0,46644.0,0.00277014]
[1649150395606,0.320706,46645.0,46644.0,0.00277014]
[1649150395806,1.07817563,46646.0,46644.0,0.00277014]
[1649150395908,0.320706,46645.0,46644.0,0.00277014]
[1649150396462,0.1764558,46645.0,46644.0,0.00277014]
[1649150397162,0.1764558,46645.0,46644.0,0.00138778]
[1649150397813,0.4971618,46645.0,46644.0,0.00138778]
[1649150398058,0.49532652,46645.0,46644.0,0.00138778]
[1649150398897,0.320706,46645.0,46644.0,0.00138778]
[1649150399197,0.320706,46645.0,46643.0,0.00277014]
[1649150399298,0.320706,46644.0,46643.0,0.00277014]
[1649150399598,0.05,46644.0,46641.0,0.02785879]
[1649150399698,0.1,46644.0,46641.0,0.02785879]
[1649150400000,0.05,46644.0,46641.0,0.02785879]
[1649150400099,0.43,46645.0,46641.0,0.02785879]
[1649150400452,0.2,46643.0,46640.0,0.21]
[1649150400551,0.053599,46642.0,46640.0,0.21]
[1649150402202,0.10056154,46643.0,46640.0,0.21]
[1649150402306,0.05056154,46643.0,46640.0,0.21]
[1649150402498,0.00056154,46643.0,46640.0,0.21]
[1649150403102,0.05,46644.0,46640.0,0.21]
[1649150403403,0.05056154,46644.0,46640.0,0.21]
[1649150404056,0.25056154,46644.0,46640.0,0.21]
[1649150404356,0.25,46644.0,46640.0,0.21]
[1649150404608,0.25056154,46644.0,46640.0,0.21]
[1649150405577,0.25,46644.0,46640.0,0.21]
[1649150405778,0.2505617,46644.0,46640.0,0.21]
[1649150406231,0.0505617,46644.0,46640.0,0.21]
[1649150406684,0.2,46643.0,46640.0,0.21]
[1649150406830,0.0505617,46644.0,46640.0,0.21]
[1649150406831,0.05,46644.0,46640.0,0.21]
[1649150406931,0.25,46644.0,46640.0,0.21]
[1649150407085,0.0505622,46644.0,46640.0,0.21]
[1649150407934,0.05,46644.0,46640.0,0.21]
[1649150408285,0.0505622,46644.0,46640.0,0.51]
[1649150408387,0.0505622,46644.0,46640.0,0.563589]
[1649150408484,0.0505622,46644.0,46640.0,0.263589]
[1649150409187,0.05,46644.0,46640.0,0.263589]
[1649150409324,0.05054334,46644.0,46640.0,0.263589]
[1649150409973,0.29808435,46644.0,46640.0,0.263589]
[1649150410075,0.05054334,46644.0,46640.0,0.263589]
[1649150410174,0.29808435,46644.0,46640.0,0.263589]
[1649150410274,0.05054334,46644.0,46640.0,0.263589]
[1649150410375,0.05,46643.0,46640.0,0.263589]
[1649150410474,0.05,46644.0,46640.0,0.263589]
[1649150410577,0.05054329,46644.0,46640.0,0.263589]
[1649150410875,0.05054329,46644.0,46640.0,0.4838908]
[1649150411075,0.05054329,46644.0,46640.0,0.263589]
[1649150411175,0.2980843,46644.0,46640.0,0.263589]
[1649150411375,0.05054329,46644.0,46640.0,0.263589]
[1649150411577,0.05,46644.0,46640.0,0.263589]
[1649150411776,0.05054329,46644.0,46640.0,0.263589]
[1649150411976,0.05054329,46644.0,46640.0,0.58776112]
[1649150412078,0.05054329,46644.0,46640.0,0.58775711]
[1649150412179,0.05054329,46644.0,46640.0,0.36745026]
[1649150412377,0.2980843,46644.0,46640.0,0.58775913]
[1649150412477,0.2980843,46644.0,46640.0,0.36745026]